[Event "Serbian-ch Semifinal 2024"]
[Site "Paracin"]
[Date "2024.02.09"]
[Round "7.7"]
[White "Ivanovic, Marko"]
[Black "Nestorovic, Nikola"]
[Result "0-1"]
[ECO "D00"]
[WhiteElo "2245"]
[BlackElo "2465"]
[Annotator "TA"]
[PlyCount "56"]
[EventDate "2024.02.04"]
[EventType "swiss"]
[EventCountry "SRB"]
[SourceTitle "playchess.com"]
[Source "ChessBase"]
[SourceQuality "1"]
[TimeControl "40/5400+30:1800+30"]

{[%evp 9,56,4,9,12,17,0,-11,-14,5,-14,13,8,20,41,47,47,43,18,18,11,98,77,66,68,71,0,10,0,0,0,49,41,50,45,66,3,64,56,82,81,97,23,18,-539,-492,-640,-626,-635,-628]} 1. d4 {[%emt 0:04:30]} Nf6 {[%emt 0:00:06]} 2. Bg5 {[%emt 0:00:33]} d5 {[%emt 0:00:05]} 3. e3 {[%emt 0:00:04]} c5 {[%emt 0:00:13]} 4. Bxf6 {[%emt 0:00:05]} gxf6 {[%emt 0:00:06]} 5. dxc5 {[%emt 0:00:04]} e6 {[%emt 0:14:25]} 6. c4 {[%emt 0:00:43]} dxc4 {[%emt 0:00:08]} 7. Nd2 {[%emt 0:00:10]} c3 {[%emt 0:05:42]} 8. bxc3 {[%emt 0:00:02] The position is equal.} Bxc5 {[%emt 0:00:10]} 9. Qh5 {[%emt 0:00:05]} Be7 {[%emt 0:02:36]} 10. Ngf3 {[%emt 0:03:46]} Nc6 {[%emt 0:00:12]} 11. Bb5 {[%emt 0:14:34]} Bd7 {[%emt 0:13:21]} 12. O-O {[%emt 0:01:03]} Qc7 {[%emt 0:00:11]} 13. Rab1 {[%emt 0:07:40]} a6 {[%emt 0:04:37]} 14. Be2 {[%emt 0:04:24]} (14. Bxc6 {keeps more tension.} Bxc6 15. Nd4 O-O 16. c4) 14... f5 {[%emt 0:17:53]} (14... h6 $11 {keeps the balance.}) 15. e4 {[%emt 0:04:28]} fxe4 {[%emt 0:02:07]} 16. Nxe4 {[%emt 0:00:39]} O-O-O {[%emt 0:04:11]} 17. Rb2 {[%emt 0:07:24]} (17. Qxf7 $16 h5 18. Ned2) 17... f5 $11 {[%emt 0:01:12]} 18. Ned2 {[%emt 0:00:33]} Na5 {[%emt 0:05:44][%cal Oh8g8]} 19. Rfb1 {[%emt 0:07:02][%cal Od2c4]} Bc5 {[%emt 0:17:24]} (19... Qxc3 $11 {was preferrable.} 20. Nb3 Nc6) 20. Nd4 $14 {[%emt 0:06:28]} Bxd4 {[%emt 0:01:33]} 21. cxd4 {[%emt 0:00:29]} Bc6 {[%emt 0:00:24][%cal Oh8g8]} 22. Rb4 {[%emt 0:05:53]} (22. Qh6 $14) 22... Rhg8 {[%emt 0:00:58]} ({Better is} 22... Bd5 $11) 23. Bf3 {[%emt 0:02:43]} (23. g3 {looks sharper.} Rg7 24. Qh6 Kb8 25. Bxa6 f4 26. Rc1) 23... Bxf3 {[%emt 0:02:51]} 24. Qxf3 {[%emt 0:01:06][%cal Od2c4] Strongly threatening Nc4!} Rg7 {[%emt 0:01:44]} 25. Qe2 {[%emt 0:02:30]} (25. Qa3 $16 {And now Rc1 would win.} Rd6 26. Ra4) 25... Qd6 {[%emt 0:02:56]} 26. Ra4 $2 {[%emt 0:09:58][%mdl 8192]} (26. g3 $11) 26... Qc6 $1 $19 {[%emt 0:01:01][%csl Gg7,LRa4,LRg2][%cal Rc6g2] [#] Black is clearly winning.} 27. Nf3 {[%emt 0:00:56]} Qxa4 {[%emt 0:00:05]} 28. Qxe6+ {[%emt 0:00:09]} Qd7 {[%emt 0:01:08] Weighted Error Value: White=0.51/Black=0.16 (very precise) .  Loses game:     	White=1     	---        Mistake:       	White=3     	Black=3      Inaccurate:     	White=2     	Black=2      OK:         	White=8     	Black=8      Best:        	---       	Black=3} 0-1

[Event "Serbian-ch Semifinal 2024"]
[Site "Paracin"]
[Date "2024.02.09"]
[Round "7.8"]
[White "Sedlak, Nikola"]
[Black "Stankovic, Boris"]
[Result "1/2-1/2"]
[ECO "B40"]
[WhiteElo "2463"]
[BlackElo "2310"]
[Annotator "TA"]
[PlyCount "120"]
[EventDate "2024.02.04"]
[EventType "swiss"]
[EventCountry "SRB"]
[SourceTitle "playchess.com"]
[Source "ChessBase"]
[SourceQuality "1"]
[TimeControl "40/5400+30:1800+30"]

{[%evp 33,120,0,0,-16,0,0,24,13,27,22,25,22,8,0,0,0,0,0,0,0,0,-29,-44,-28,33,33,35,0,0,0,0,16,0,0,11,14,60,27,86,87,95,56,79,86,90,90,321,324,295,307,390,297,274,168,177,160,160,160,162,52,52,60,122,122,121,52,52,52,74,52,52,52,83,8,8,8,8,8,8,0,0,0,0,0,0,0,0,0,0]} 1. e4 {[%emt 0:01:57]} c5 {[%emt 0:05:00]} 2. Nf3 {[%emt 0:00:15]} e6 {[%emt 0:02:22]} 3. b3 {[%emt 0:01:20]} a6 {[%emt 0:03:28]} 4. Bb2 {[%emt 0:00:19]} Nc6 {[%emt 0:00:16]} 5. g3 {[%emt 0:00:51]} d6 {[%emt 0:08:18]} 6. d4 {[%emt 0:02:00] B40: Sicilian: 2...e6, Unusual lines.} cxd4 {[%emt 0:00:33]} 7. Nxd4 {[%emt 0:00:06]} e5 {[%emt 0:03:42]} 8. Nxc6 $146 {[%emt 0:00:56]} ({Predecessor:} 8. Ne2 Nf6 9. Bg2 Be7 10. O-O O-O 11. h3 b5 12. a4 Bb7 13. Nbc3 Qb6 14. Qd2 {1-0 Pranav,V (2548)-Hambleton,A (2437) Titled Tuesday intern op 29th Nov Late blitz 2022 (3)}) 8... bxc6 {[%emt 0:00:06]} 9. Bg2 {[%emt 0:00:20]} Nf6 {[%emt 0:04:02]} 10. O-O {[%emt 0:00:54]} h5 {[%emt 0:02:03]} 11. h3 {[%emt 0:05:05]} Be7 {[%emt 0:02:32]} 12. Nd2 {[%emt 0:05:52]} Be6 {[%emt 0:03:37]} 13. c4 {[%emt 0:05:16]} Qd7 {[%emt 0:08:54]} 14. h4 {[%emt 0:06:31]} Ng4 {[%emt 0:04:49]} 15. Nf3 {[%emt 0:06:02]} f6 {[%emt 0:01:49]} 16. Qe2 {[%emt 0:02:22]} a5 {[%emt 0:01:09]} 17. Bc3 {[%emt 0:01:45]} O-O {[%emt 0:07:05]} 18. Nh2 {[%emt 0:02:15]} a4 {[%emt 0:05:02]} 19. b4 {[%emt 0:01:21]} Qe8 {[%emt 0:01:04]} 20. Nxg4 {[%emt 0:05:59]} hxg4 {[%emt 0:00:32]} 21. Bd2 {[%emt 0:03:05]} Qf7 {[%emt 0:00:55]} 22. Rfc1 {[%emt 0:01:41]} a3 {[%emt 0:00:24]} 23. Be3 {[%emt 0:00:45]} Ra4 {[%emt 0:02:03]} 24. Rab1 {[%emt 0:02:13]} Rb8 {[%emt 0:05:50]} 25. Bd2 {[%emt 0:03:52]} c5 {[%emt 0:03:06]} 26. Qd1 {[%emt 0:00:47]} Qe8 {[%emt 0:02:57]} 27. bxc5 {[%emt 0:11:03]} Rxb1 {[%emt 0:00:09]} 28. Rxb1 {[%emt 0:00:10]} dxc5 {[%emt 0:03:31]} (28... Rxc4 $11 29. Bf1 Rxc5) 29. Bf1 $14 {[%emt 0:03:34]} Qd7 {[%emt 0:04:23]} 30. Rb7 {[%emt 0:04:31]} Qxb7 {[%emt 0:00:24]} 31. Qxa4 {[%emt 0:00:09]} Kf7 {[%emt 0:00:33]} 32. Qxa3 {[%emt 0:01:00]} Qxe4 {[%emt 0:01:52]} 33. Qb3 {[%emt 0:03:28]} f5 {[%emt 0:03:52]} 34. a4 {[%emt 0:01:55]} f4 {[%emt 0:00:53]} (34... Qc6 $11) 35. Qd3 {[%emt 0:01:47]} Qc6 {[%emt 0:02:38]} (35... Qxd3 $11 36. Bxd3 e4 37. Bxe4 fxg3) 36. gxf4 $16 {[%emt 0:03:30]} exf4 {[%emt 0:00:22]} 37. Bxf4 {[%emt 0:00:07]} Bxh4 {[%emt 0:01:37]} 38. a5 {[%emt 0:00:48]} Qa4 {[%emt 0:01:43]} 39. Qh7 {[%emt 0:01:24]} Be7 $2 {[%emt 0:02:17]} (39... Bxc4 $16 {keeps fighting.} 40. Qh5+ (40. Qxh4 Qd1 $14) 40... Kg8) 40. Qh5+ $18 {[%emt 0:00:41]} Kf8 {[%emt 0:01:38]} 41. Qe5 {[%emt 0:36:43]} Bd7 {[%emt 0:07:40]} 42. Bd2 {[%emt 0:00:00]} Qc6 {[%emt 0:05:52]} 43. Bg2 {[%emt 0:00:00]} Qd6 {[%emt 0:00:40]} 44. Bf4 {[%emt 0:00:00]} Qxe5 {[%emt 0:02:41]} 45. Bxe5 {[%emt 0:00:00]} Bc8 {[%emt 0:00:11]} 46. Bc6 {[%emt 0:00:00]} ({White must play} 46. Bc7 $1 $18 {aiming for Bc6.} Kf7 47. Bd5+ Kf6 48. Kh2) 46... Bd8 $1 $14 {[%emt 0:03:34]} 47. Bc3 {[%emt 0:00:00]} Bc7 {[%emt 0:00:31]} (47... Ke7 $14) 48. Bb5 $1 $16 {[%emt 0:00:00]} g3 {[%emt 0:02:06] [#]} 49. a6 {[%emt 0:00:00]} (49. f3 $1 $16) 49... gxf2+ $14 {[%emt 0:02:52]} 50. Kxf2 {[%emt 0:00:00]} g5 {[%emt 0:01:09]} 51. Bf6 {[%emt 0:00:05]} g4 {[%emt 0:01:22]} 52. Bh4 {[%emt 0:00:06]} Kf7 {[%emt 0:01:03] [#]} 53. Bg3 {[%emt 0:03:05]} ({White should try} 53. Bg5 $1 $16) 53... Bxg3+ $1 $11 {[%emt 0:00:14]} 54. Kxg3 {[%emt 0:00:09]} Ke7 {[%emt 0:00:42]} 55. a7 {[%emt 0:00:07]} Bb7 {[%emt 0:00:05]} 56. Ba6 {[%emt 0:00:15]} Ba8 {[%emt 0:01:13]} 57. Bc8 {[%emt 0:00:17]} Kd6 {[%emt 0:00:21]} 58. Kxg4 {[%emt 0:01:35]} (58. Bxg4 $5 Kc7 $8 59. Bh5 $14) 58... Kc7 {[%emt 0:00:14]} 59. Be6 {[%emt 0:00:13]} Kb6 {[%emt 0:00:39]} 60. Bd5 {[%emt 0:00:43]} Kxa7 {[%emt 0:00:26]} 1/2-1/2

[Event "Serbian-ch Semifinal 2024"]
[Site "Paracin"]
[Date "2024.02.09"]
[Round "7.9"]
[White "Milosevic, Milos"]
[Black "Eric, Jovana"]
[Result "1/2-1/2"]
[ECO "B51"]
[WhiteElo "2388"]
[BlackElo "2124"]
[Annotator "TA"]
[PlyCount "99"]
[EventDate "2024.02.04"]
[EventType "swiss"]
[EventCountry "SRB"]
[SourceTitle "playchess.com"]
[Source "ChessBase"]
[SourceQuality "1"]
[TimeControl "40/5400+30:1800+30"]

{[%evp 19,99,-15,-6,-22,18,6,24,0,28,8,11,7,8,0,0,-7,0,0,-3,-14,-13,0,0,-19,-12,-14,-15,-34,0,-62,-51,-61,-39,-45,-42,-37,-41,-43,-33,-55,-35,-63,-44,-29,-22,-30,-9,-27,-28,-32,-30,-38,-12,-10,-14,-16,78,0,0,0,0,0,0,0,78,44,56,16,14,0,74,0,0,0,121,0,0,-41,16,0,0,-18]} 1. e4 {[%emt 0:13:40]} c5 {[%emt 0:00:12]} 2. Nf3 {[%emt 0:00:12]} d6 {[%emt 0:00:09]} 3. Bb5+ {[%emt 0:01:58]} Nd7 {[%emt 0:00:36]} 4. O-O {[%emt 0:00:17]} a6 {[%emt 0:00:40]} 5. Bd3 {[%emt 0:00:30]} Ngf6 {[%emt 0:00:50]} 6. Re1 {[%emt 0:00:15] B51: Sicilian: Moscow Variation (3 Bb5+) without 3...Bd7.} e6 {[%emt 0:01:21]} 7. c3 {[%emt 0:00:18] 7.c3 was played by the boomers.} Be7 {[%emt 0:01:32]} 8. Bc2 {[%emt 0:00:41]} b5 {[%emt 0:02:36]} 9. d4 {[%emt 0:02:13]} Bb7 {[%emt 0:03:43]} 10. Bg5 {[%emt 0:04:12]} h6 {[%emt 0:03:35]} 11. Bh4 {[%emt 0:01:08]} e5 {[%emt 0:14:00]} 12. Nbd2 {[%emt 0:02:56]} O-O {[%emt 0:03:05]} 13. Nf1 {[%emt 0:00:16]} Re8 $146 {[%emt 0:04:08]} ({Predecessor:} 13... exd4 14. cxd4 d5 15. e5 Ne4 16. Bxe7 Qxe7 17. Ne3 cxd4 18. Nf5 Qe6 19. N3xd4 Qxe5 {0-1 Zeliantsova,K (1970)-Beydullayeva,G (2264) World Cup U18 Girls Prel rapid 2021 (3)}) 14. d5 {[%emt 0:04:14]} Nf8 {[%emt 0:07:06]} 15. Bxf6 {[%emt 0:01:49]} Bxf6 {[%emt 0:00:06]} 16. a4 {[%emt 0:00:25]} c4 {[%emt 0:01:48]} 17. Ne3 {[%emt 0:00:36]} g6 {[%emt 0:02:46]} 18. Ra3 {[%emt 0:01:03]} Nd7 {[%emt 0:01:31]} 19. b3 {[%emt 0:04:17]} cxb3 {[%emt 0:02:22]} 20. Rxb3 {[%emt 0:00:06]} Nc5 {[%emt 0:00:30]} 21. Rb4 {[%emt 0:00:16]} bxa4 {[%emt 0:08:28]} 22. Bxa4 {[%emt 0:00:03]} Rf8 {[%emt 0:00:53]} 23. Bc6 {[%emt 0:00:29]} Ra7 {[%emt 0:00:50]} 24. Qb1 {[%emt 0:01:54]} (24. Nc4 $11) 24... Qc7 $1 $15 {[%emt 0:00:45]} 25. Rb6 {[%emt 0:06:41]} a5 {[%emt 0:06:21]} 26. Nc4 {[%emt 0:02:25]} Ba6 {[%emt 0:07:51]} 27. Bb5 $1 {[%emt 0:01:14]} Rb8 {[%emt 0:07:20]} 28. Rxb8+ {[%emt 0:06:01]} Qxb8 {[%emt 0:00:04]} 29. Na3 {[%emt 0:00:20]} Bxb5 {[%emt 0:02:03]} 30. Nxb5 {[%emt 0:00:10]} Rb7 {[%emt 0:00:34]} 31. c4 {[%emt 0:00:06]} Bd8 {[%emt 0:01:27]} 32. Re2 {[%emt 0:00:27]} Bb6 {[%emt 0:03:18]} 33. h4 {[%emt 0:01:02]} Kg7 {[%emt 0:01:00]} 34. h5 {[%emt 0:01:37]} Qd8 {[%emt 0:01:21]} (34... gxh5 35. Nh4 Kh7 36. Nf5 $16) 35. g3 {[%emt 0:00:29]} Qf6 {[%emt 0:01:18]} (35... gxh5 $6 36. Kg2 $14) 36. Kg2 {[%emt 0:00:29]} a4 {[%emt 0:03:18]} (36... gxh5 37. Nh4 Rd7 38. Re3 $16 (38. Nf5+ Kh7 $14)) 37. Ra2 {[%emt 0:01:43]} Nb3 {[%emt 0:02:46]} (37... gxh5 $6 38. Nh4 $14) (37... Qe7 $11) 38. Qd1 {[%emt 0:03:19]} (38. Qc2 $16 Nc5 39. Nc3) 38... Nc5 $11 {[%emt 0:01:33]} 39. Qc2 {[%emt 0:00:06]} Ba5 {[%emt 0:01:59]} (39... gxh5 $6 40. Nc3 $16) 40. Qe2 {[%emt 0:02:09]} Bb4 {[%emt 0:01:22]} (40... gxh5 $2 41. Nh4 $18) 41. Nh4 {[%emt 0:34:15]} a3 {[%emt 0:10:53]} (41... Kh7 $11) 42. Qc2 {[%emt 0:00:00]} (42. Nxa3 {simplifies} Bxa3 43. Rxa3 Qg5 44. Ra1) 42... Rb8 {[%emt 0:03:33]} 43. Qb1 {[%emt 0:00:00]} (43. hxg6 {simplifies} fxg6 44. Nxa3 Bxa3 45. Rxa3 Rb7 46. Qe2) 43... Na6 {[%emt 0:00:12]} 44. Qd1 {[%emt 0:00:00]} (44. Nxa3 $2 {is the wrong capture.} Bxa3 (44... gxh5 $2 {loses.} 45. Nf5+ Kh7 46. Nb5 $18) 45. Qe1 Bb4 $19) (44. Qc2 $6 Nc5 $16) 44... Bc5 {[%emt 0:01:41]} (44... Nc5 $11) 45. Nf3 {[%emt 0:00:00]} (45. Nxa3 $16 {And now Nb5 would win.} Nb4 46. Rb2) 45... Ra8 $1 $11 {[%emt 0:04:17]} 46. Qb3 {[%emt 0:00:00]} g5 {[%emt 0:04:46] [#]} (46... Nb4 $11 47. Rxa3 Rxa3 48. Qxa3 gxh5) 47. Re2 $2 {[%emt 0:00:00]} ({Of course not} 47. Nxa3 $6 Nb4 48. Rd2 Nxd5 $11) (47. Nh2 $1 $16) 47... Nb4 $15 {[%emt 0:01:21]} 48. Nxa3 {[%emt 0:00:00] [#]} Nxd5 {[%emt 0:01:24]} (48... Nd3 $1 $15 49. Nb5 Nc1) 49. Nc2 {[%emt 0:00:00]} Ne7 {[%emt 0:00:38]} 50. Nh2 {[%emt 0:00:00]} 1/2-1/2

[Event "Serbian-ch Semifinal 2024"]
[Site "Paracin"]
[Date "2024.02.09"]
[Round "7.10"]
[White "Pogorelskikh, Sofia"]
[Black "Arsovic, Zoran"]
[Result "1/2-1/2"]
[ECO "B55"]
[WhiteElo "2198"]
[BlackElo "2362"]
[Annotator "RC"]
[PlyCount "92"]
[EventDate "2024.02.04"]
[EventType "swiss"]
[EventCountry "SRB"]
[SourceTitle "playchess.com"]
[Source "ChessBase"]
[SourceQuality "1"]
[TimeControl "40/5400+30:1800+30"]

1. e4 {[%emt 0:00:05]} c5 {[%emt 0:00:13]} 2. Nf3 {[%emt 0:00:13]} d6 {[%emt 0:00:27]} 3. d4 {[%emt 0:00:18]} cxd4 {[%emt 0:00:22]} 4. Nxd4 {[%emt 0:00:14]} Nf6 {[%emt 0:00:50]} 5. f3 {[%emt 0:00:15]} Nc6 {[%emt 0:00:39]} 6. c4 {[%emt 0:00:28]} Qb6 {[%emt 0:00:42]} 7. Nc2 {[%emt 0:00:36]} e6 {[%emt 0:00:46]} 8. Nc3 {[%emt 0:00:32]} Be7 {[%emt 0:00:32]} 9. Bd3 {[%emt 0:01:03]} Nd7 {[%emt 0:01:14]} 10. Be3 {[%emt 0:10:54]} Qxb2 {[%emt 0:07:12]} 11. Qd2 {[%emt 0:08:27]} Bf6 {[%emt 0:02:13]} 12. Nb5 {[%emt 0:04:18]} a6 {[%emt 0:06:02]} 13. Nxd6+ {[%emt 0:02:44]} Ke7 {[%emt 0:00:20]} 14. Nxc8+ {[%emt 0:01:27]} Rhxc8 {[%emt 0:01:53]} 15. O-O {[%emt 0:03:00]} Qc3 {[%emt 0:06:12]} 16. Qxc3 {[%emt 0:06:37]} Bxc3 {[%emt 0:00:15]} 17. Rab1 {[%emt 0:01:02]} Na5 {[%emt 0:18:53]} 18. Be2 {[%emt 0:15:17]} Be5 {[%emt 0:13:08]} 19. Rfd1 {[%emt 0:14:19]} Rc7 {[%emt 0:06:14]} 20. f4 {[%emt 0:06:26]} Bd6 {[%emt 0:00:37]} 21. e5 {[%emt 0:01:45]} Bc5 {[%emt 0:00:15]} 22. Bxc5+ {[%emt 0:02:19]} Nxc5 {[%emt 0:01:23]} 23. Nd4 {[%emt 0:05:30]} Rd8 {[%emt 0:09:59]} 24. Nb3 {[%emt 0:01:25]} Rxd1+ {[%emt 0:07:41]} 25. Bxd1 {[%emt 0:00:06]} Naxb3 {[%emt 0:05:31]} 26. axb3 {[%emt 0:00:11]} a5 {[%emt 0:00:26]} 27. Bc2 {[%emt 0:02:48]} Rd7 {[%emt 0:05:22]} 28. Rd1 {[%emt 0:00:18]} b5 {[%emt 0:01:50]} 29. cxb5 {[%emt 0:04:39]} Rb7 {[%emt 0:00:13]} 30. Kf2 {[%emt 0:01:29]} Rxb5 {[%emt 0:00:11]} 31. Rb1 {[%emt 0:03:04]} h5 {[%emt 0:02:32]} 32. g3 {[%emt 0:01:22]} g6 {[%emt 0:01:25]} 33. Ke3 {[%emt 0:00:55]} Rb4 {[%emt 0:00:44]} 34. Kd2 {[%emt 0:01:37]} Kd7 {[%emt 0:00:37]} 35. Kc3 {[%emt 0:00:28]} Kc7 {[%emt 0:00:33]} 36. Rd1 {[%emt 0:00:49]} Ne4+ {[%emt 0:00:31]} 37. Bxe4 {[%emt 0:00:59]} Rxe4 {[%emt 0:00:05]} 38. Rd6 {[%emt 0:00:37]} Re2 {[%emt 0:00:21]} 39. h4 {[%emt 0:00:44]} Rg2 {[%emt 0:00:31]} 40. Rd3 {[%emt 0:00:20]} Kc6 {[%emt 0:00:25]} 41. Kc4 {[%emt 0:07:07]} Rc2+ {[%emt 0:09:46]} 42. Rc3 {[%emt 0:00:32]} Ra2 {[%emt 0:05:46]} 43. Rd3 {[%emt 0:01:03]} Re2 {[%emt 0:04:31]} 44. Rd6+ {[%emt 0:00:43]} Kc7 {[%emt 0:00:05]} 45. Rd3 {[%emt 0:04:52]} Kc6 {[%emt 0:01:16]} 46. Rd6+ {[%emt 0:00:10]} Kc7 {[%emt 0:12:47]} 1/2-1/2

[Event "Serbian-ch Semifinal 2024"]
[Site "Paracin"]
[Date "2024.02.09"]
[Round "7.11"]
[White "Martic, Ivan"]
[Black "Todorovic, Goran N"]
[Result "0-1"]
[ECO "B08"]
[WhiteElo "2323"]
[BlackElo "2263"]
[Annotator "TA"]
[PlyCount "76"]
[EventDate "2024.02.04"]
[EventType "swiss"]
[EventCountry "SRB"]
[SourceTitle "playchess.com"]
[Source "ChessBase"]
[SourceQuality "1"]
[TimeControl "40/5400+30:1800+30"]

{[%evp 16,76,36,3,14,19,0,-4,0,0,-2,-39,-38,-72,-10,-10,-16,-15,-8,-16,-10,-16,-20,-18,-15,-103,-30,-85,-94,-166,-155,-165,-162,-255,-182,-248,-281,-281,-268,-343,-333,-427,-420,-411,-393,-585,-555,-1027,-898,-1058,-1082,-747,-706,-1245,-600,-552,-516,-1057,-1035,-1267,-1227,-1506,-1426]} 1. e4 {[%emt 0:00:12]} Nc6 {[%emt 0:00:11]} 2. Nf3 {[%emt 0:00:12]} d6 {[%emt 0:00:23]} 3. d4 {[%emt 0:00:08]} Nf6 {[%emt 0:00:22]} 4. Nc3 {[%emt 0:00:16]} g6 {[%emt 0:00:19]} 5. Be2 {[%emt 0:00:46]} Bg7 {[%emt 0:00:12]} 6. d5 {[%emt 0:00:36]} Nb8 {[%emt 0:00:10]} 7. O-O {[%emt 0:00:12]} O-O {[%emt 0:00:07]} 8. Be3 {[%emt 0:01:06]} c6 {[%emt 0:00:17]} 9. h3 {[%emt 0:03:36]} b5 {[%emt 0:03:06][%cal Bb7b5,Bb5b4][%mdl 32]} 10. dxc6 {[%emt 0:01:59]} b4 {[%emt 0:01:18]} 11. Nd5 {[%emt 0:00:05] [#] Threatens to win with c7.} Nxc6 {[%emt 0:00:14] The position is equal.} 12. Nd4 {[%emt 0:00:59]} Bb7 {[%emt 0:04:13]} 13. Ba6 {[%emt 0:17:18]} Nxd5 {[%emt 0:21:49]} 14. exd5 {[%emt 0:00:55]} Nxd4 {[%emt 0:04:29]} (14... Bxa6 $17 15. Nxc6 Qc7) 15. Bxb7 $11 {[%emt 0:00:13]} Rb8 {[%emt 0:00:10]} 16. Bxd4 {[%emt 0:00:11]} Bxd4 {[%emt 0:00:33]} 17. Qxd4 {[%emt 0:00:06]} Rxb7 {[%emt 0:00:26]} 18. Rfe1 {[%emt 1:10:40]} Qa5 {[%emt 0:04:11]} 19. Re2 {[%emt 0:00:00]} Rc8 {[%emt 0:01:16]} 20. h4 {[%emt 0:00:00]} (20. Rae1 $11) 20... Qb5 {[%emt 0:14:34]} ({Black should try} 20... Rc5 $17 21. Rd2 Rbb5) 21. Qd2 {[%emt 0:00:00]} (21. Rae1 $11 {remains equal.}) 21... Rc5 $17 {[%emt 0:03:31] Black is more active. Black converts the advantage convincingly.} 22. Rd1 {[%emt 0:00:00] [#]} (22. Qe1 $17) 22... Rxd5 $3 $19 {[%emt 0:03:30][%mdl 512]} 23. Qxd5 {[%emt 0:00:00]} Qxe2 {[%emt 0:00:11]} 24. Qxb7 {[%emt 0:00:00]} (24. Qd3 $142 Qxd3 25. Rxd3) 24... Qxd1+ {[%emt 0:00:15][%mdl 4096] Endgame. KQ-KQ} 25. Kh2 {[%emt 0:00:00]} Qxc2 {[%emt 0:05:27]} 26. Qxe7 {[%emt 0:00:00]} Qxf2 {[%emt 0:03:53]} (26... Qxb2 27. Qxd6 Qxf2 (27... Qxa2 28. Qb8+ Kg7 29. Qe5+ f6 30. Qe7+ Kg8 31. Qd8+ Kg7 32. Qe7+ Kg8 33. Qe8+ Kg7 34. Qe7+ $15) 28. Qxb4 $19) 27. h5 {[%emt 0:00:00]} Qf4+ {[%emt 0:01:48]} (27... Qxb2 28. Qxd6 Qe2 (28... gxh5 29. Qd8+ Kg7 30. Qg5+ Kh8 31. Qd8+ Kg7 32. Qg5+ Kf8 33. Qd8+ Kg7 $11) (28... Qxa2 29. h6 $11) 29. Qd8+ Kg7 30. Qd4+ f6 31. Qxa7+ Kh6 32. hxg6 $17) (27... gxh5 28. Qd8+ Kg7 29. Qg5+ Kh8 30. Qd8+ Kg7 31. Qg5+ Kh8 32. Qd8+ Kg7 $11) 28. Kg1 {[%emt 0:00:00]} Qd4+ {[%emt 0:00:39]} (28... gxh5 $2 29. Qxa7 Qc1+ 30. Kh2 $17) 29. Kf1 {[%emt 0:00:00]} Qc4+ {[%emt 0:02:24]} (29... gxh5 30. Qd8+ Kg7 31. Qg5+ Kh8 32. Qd8+ Kg7 33. Qg5+ Kf8 34. Qd8+ Kg7 $11) (29... Qxb2 30. Qxa7 Qb1+ (30... gxh5 $2 31. Qa8+ Kg7 32. Qd5 $19) 31. Ke2 $19) 30. Kg1 {[%emt 0:00:00]} (30. Kf2 {keeps fighting.} Qc5+ (30... gxh5 31. Qg5+ Kf8 32. Qd8+ Kg7 33. Qg5+ Kf8 34. Qd8+ Kg7 35. Qg5+ Kf8 $11) 31. Kf1 Qc1+ (31... gxh5 $2 32. Qf6 $19) (31... Qxh5 $2 32. Qxa7 Qf5+ 33. Kg1 $19) 32. Kf2 Qxb2+ (32... gxh5 $2 33. Qxd6 Qxb2+ 34. Kg1 $17) 33. Kf3) 30... Qc5+ {[%emt 0:00:24] Black is clearly winning.} (30... gxh5 31. Qd8+ Kg7 32. Qg5+ Kf8 33. Qd8+ Kg7 34. Qg5+ Kh8 35. Qf6+ Kg8 36. Qg5+ Kf8 37. Qd8+ Kg7 $11) (30... Qxa2 31. h6 Qb1+ 32. Kh2) 31. Kf1 {[%emt 0:00:00]} Qc1+ {[%emt 0:01:52]} 32. Kf2 {[%emt 0:00:00]} Qxb2+ {[%emt 0:00:37]} ({Less strong is} 32... gxh5 33. Qxd6 Qxb2+ 34. Kg1 $17) 33. Kf3 {[%emt 0:00:00]} Qc3+ {[%emt 0:00:40]} ({Inferior is} 33... gxh5 34. Qd8+ Kg7 35. Qg5+ Kh8 36. Qd8+ Kg7 37. Qg5+ Kf8 38. Qd8+ Kg7 $11) 34. Kg4 {[%emt 0:00:00]} Qd4+ {[%emt 0:04:12]} 35. Kh3 {[%emt 0:00:00]} Qe5 {[%emt 0:06:06]} ({Stronger than} 35... gxh5 36. Qd8+ Kg7 37. Qg5+ Kf8 38. Qd8+ Kg7 39. Qg5+ Kh8 40. Qd8+ Kg7 $11) 36. Qd8+ {[%emt 0:00:00]} (36. Qxa7 $142 Qxh5+ (36... gxh5 37. Qb8+ Kg7 38. Qxb4 $17) 37. Kg3) 36... Kg7 {[%emt 0:00:45]} 37. g4 {[%emt 0:00:00]} gxh5 {[%emt 0:01:01]} 38. g5 {[%emt 0:00:00]} a5 {[%emt 0:01:04] Weighted Error Value: White=0.83/Black=0.30.  Mistake:       	White=5     	Black=2      Inaccurate:     	White=4     	---        OK:         	White=5     	Black=13     Best:        	White=1     	Black=7} 0-1